bitfinex/quotes_ETHUSD_20210401
["timestamp","ask_amount","ask_price","bid_price","bid_amount"]
[1617249020285,7.4795,1919.8,1919.7,0.66]
[1617249021285,7.4795,1919.8,1919.7,9.67307]
[1617249021487,7.4795,1919.8,1919.7,9.8364184]
[1617249021704,7.4795,1919.8,1919.7,12.9964184]
[1617249022306,7.4795,1919.8,1919.7,12.6164184]
[1617249022504,7.4795,1919.8,1919.7,12.9964184]
[1617249022907,7.4795,1919.8,1919.7,11.7964184]
[1617249023107,5.6357,1919.8,1919.7,14.826706]
[1617249026145,3.7986,1919.8,1919.7,14.826706]
[1617249028367,3.7986,1919.8,1919.7,20.869006]
[1617249028765,3.7786,1919.8,1919.7,20.869006]
[1617249029165,1.9407,1919.8,1919.7,20.869006]
[1617249029588,1.9407,1919.8,1919.7,22.069006]
[1617249029789,1.9407,1919.8,1919.7,21.689006]
[1617249029989,1.9407,1919.8,1919.7,6.353636]
[1617249030190,1.9407,1919.8,1919.7,4.393636]
[1617249030589,1.9407,1919.8,1919.7,0.1633484]
[1617249030792,14.04994836,1919.8,1919.7,0.1633484]
[1617249031192,14.04994836,1919.8,1919.1,1.2]
[1617249031193,20.1,1919.7,1919.1,1.2]
[1617249031390,20.1,1919.7,1919.1,1.48]
[1617249032218,7.81637,1919.5,1919.1,1.48]
[1617249032815,7.81637,1919.5,1918.9,14.999]
[1617249033016,7.81637,1919.5,1918.9,13.799]
[1617249033415,7.81637,1919.5,1919.0,0.378]
[1617249033815,1.277,1919.6,1919.0,0.378]
[1617249034417,1.277,1919.6,1919.0,8.19361]
[1617249034842,3.4231566,1919.5,1919.0,0.378]
[1617249035042,0.38,1919.5,1919.0,0.378]
[1617249035843,0.38,1919.3,1919.0,0.378]
[1617249036044,8.7597,1919.3,1919.0,0.378]
[1617249036642,8.3797,1919.3,1919.0,0.378]
[1617249038070,6.5417,1919.3,1919.0,0.378]
[1617249041115,4.6971,1919.3,1919.0,0.378]
[1617249041321,0.7239,1919.4,1919.0,0.378]
[1617249041519,22.1487,1919.6,1919.1,0.322]
[1617249041715,26.05717,1919.6,1919.1,0.322]
[1617249041915,3.05266992,1919.5,1919.1,0.322]
[1617249042316,24.73087,1919.6,1919.1,0.322]
[1617249043318,14.73087,1919.6,1919.1,0.322]
[1617249043718,10.8224,1919.6,1919.2,0.378]
[1617249043918,7.8165,1919.5,1919.2,0.28]
[1617249044123,5.9749,1919.5,1919.2,0.28]
[1617249046747,9.4407147,1919.5,1919.0,0.364]
[1617249047142,7.1900147,1919.5,1919.0,0.364]
[1617249047744,4.1342,1919.5,1919.0,0.364]
[1617249047969,4.1342,1919.5,1919.1,0.336]
[1617249049574,4.1342,1919.5,1918.9,1.2]
[1617249049575,4.1342,1919.5,1919.2,0.364]
[1617249050175,2.2629,1919.5,1919.2,0.364]
[1617249051394,2.2629,1919.5,1919.0,8.22583]
[1617249051593,2.2629,1919.5,1919.1,0.378]
[1617249051794,4.07817189,1919.7,1919.1,0.378]
[1617249051997,11.89382189,1919.7,1919.2,0.322]
[1617249052196,4.07817189,1919.7,1919.2,6.8472]
[1617249052395,4.07817189,1919.7,1919.4,0.378]
[1617249052595,1.9407,1919.8,1919.4,0.378]
[1617249052795,1.9407,1919.8,1919.5,0.406]
[1617249052995,9.75572,1919.8,1919.5,0.406]
[1617249053221,7.91932,1919.8,1919.5,0.406]
[1617249053660,7.91932,1919.8,1919.4,1.9069]
[1617249054065,7.91932,1919.8,1919.4,3.1069]
[1617249054263,7.91932,1919.8,1919.4,1.9069]
[1617249055061,7.91932,1919.8,1919.4,0.69]
[1617249055461,7.91932,1919.8,1919.4,1.89]
[1617249056267,6.08022,1919.8,1919.5,0.4]
[1617249056468,6.08022,1919.8,1919.3,7.81477]
[1617249056670,6.08022,1919.8,1919.4,0.28]
[1617249057270,6.08022,1919.8,1919.5,0.4]
[1617249057668,6.08022,1919.8,1919.5,0.68]
[1617249058671,6.08022,1919.8,1919.3,10.49477]
[1617249058873,6.08022,1919.8,1919.4,0.4]
[1617249059271,4.24132,1919.8,1919.4,0.4]
[1617249060271,4.24132,1919.8,1919.4,0.736]
[1617249060870,4.24132,1919.8,1919.5,0.41]
[1617249061898,4.24132,1919.8,1919.5,1.932]
[1617249062097,18.98953013,1920.1,1919.5,1.932]
[1617249062297,2.34053013,1920.1,1919.7,7.2471]
[1617249062500,2.34053013,1920.1,1919.7,7.6251]
[1617249062698,0.27182013,1920.1,1919.7,7.6251]
[1617249063099,7.81473,1919.9,1919.7,7.6251]
[1617249063722,7.81473,1919.9,1919.8,0.4]
[1617249064324,7.81473,1919.9,1919.7,0.378]
[1617249064524,7.81473,1919.9,1919.7,0.778]
[1617249065326,0.27182013,1920.1,1919.8,0.67]
[1617249065327,6.24546013,1920.1,1919.8,0.67]
[1617249067955,6.24546013,1920.1,1919.9,0.16333138]
[1617249068354,4.40686013,1920.1,1919.9,0.54333138]
[1617249068983,4.79686013,1920.1,1919.9,0.16333138]
[1617249069182,4.40686013,1920.1,1919.9,0.16333138]
[1617249069583,38.84959418,1920.0,1919.9,0.16333138]
[1617249069785,64.28244992,1920.0,1919.9,0.16333138]
[1617249070184,75.28244992,1920.0,1919.9,0.16333138]
[1617249070586,8.0,1919.9,1918.9,10.4194]
[1617249070792,8.0,1919.9,1919.1,0.56]
[1617249070793,7.81665,1919.5,1919.1,0.56]
[1617249070987,9.4123,1919.5,1919.2,0.14]
[1617249071186,9.4123,1919.5,1919.1,0.956]
[1617249071187,7.5748,1919.5,1919.1,0.956]
[1617249071387,7.5748,1919.5,1919.3,0.38]
[1617249071598,7.5748,1919.5,1919.1,0.956]
[1617249072202,7.5748,1919.5,1919.1,8.77212]
[1617249072399,7.81612,1919.6,1919.1,8.77212]
[1617249072601,7.81612,1919.6,1919.2,0.154]
[1617249074236,5.97482,1919.6,1919.2,0.154]
[1617249075845,9.0451856,1919.6,1919.2,0.154]
[1617249076241,0.54382688,1919.5,1919.2,0.154]
[1617249077248,20.2032,1919.8,1919.2,0.154]
[1617249077449,33.2032,1919.8,1919.3,0.4]
[1617249077649,5.01,1919.7,1919.4,0.39]
[1617249078049,5.0,1919.8,1919.4,0.677]
[1617249079476,12.81558,1919.8,1919.6,0.38]
[1617249079877,5.0,1919.8,1919.6,0.38]
[1617249080277,3.1628,1919.8,1919.6,0.38]
[1617249080880,10.42229,1920.1,1919.7,0.287]
[1617249081078,0.27179725,1920.0,1919.7,0.287]
[1617249081277,7.81508,1919.9,1919.7,0.287]
[1617249081877,7.81508,1919.9,1919.6,0.38]
[1617249082110,7.81508,1919.9,1919.3,10.814434]
[1617249082310,7.81508,1919.9,1919.5,0.942]
[1617249082911,7.81508,1919.9,1919.6,0.38]
[1617249083112,7.81508,1919.9,1919.7,0.4]
[1617249083311,5.97738,1919.9,1919.8,0.38]
[1617249083913,0.27179725,1920.0,1919.8,0.38]
[1617249084945,0.27179725,1920.0,1919.6,0.168]
[1617249085145,0.27179725,1920.0,1919.6,0.548]
[1617249086150,8.08649725,1920.0,1919.6,0.548]
[1617249086347,6.24549725,1920.0,1919.7,0.39]
[1617249086548,6.26351608,1920.0,1919.7,0.39]
[1617249086747,0.01801943,1919.9,1919.7,0.39]
[1617249087148,0.01801943,1919.9,1919.8,0.38]
[1617249087352,0.01802537,1920.0,1919.8,3.37236035]
[1617249087549,0.01802537,1920.0,1919.9,0.39]
[1617249088149,0.01803987,1920.1,1919.9,0.39]
[1617249089152,0.0180676,1920.0,1919.7,0.287]
[1617249089351,15.06833281,1920.2,1919.9,0.4]
[1617249089552,11.89156521,1920.2,1919.9,0.4]
[1617249092176,11.89156521,1920.2,1919.9,0.68]
[1617249092476,10.05076521,1920.2,1919.9,0.68]
[1617249093100,10.05076521,1920.2,1919.9,0.28]
[1617249093500,10.05076521,1920.2,1919.7,1.2]
[1617249093702,10.05076521,1920.2,1919.8,0.834]
[1617249094103,10.05076521,1920.2,1919.9,0.38]
[1617249095105,0.54367958,1920.1,1919.9,0.38]
[1617249095327,6.51843958,1920.1,1919.9,0.38]
[1617249095527,6.51843958,1920.1,1920.0,0.4]
[1617249095927,6.51843958,1920.1,1920.0,8.262]
[1617249096727,6.51843958,1920.1,1920.0,7.862]
[1617249096927,2.23653521,1920.2,1920.0,8.272]
[1617249097128,2.23653521,1920.2,1920.1,0.39]
[1617249097530,2.23653521,1920.2,1920.0,8.699]
[1617249097729,2.23653521,1920.2,1920.0,0.837]
[1617249098158,2.23653521,1920.2,1919.9,8.22284]
[1617249098360,0.39873521,1920.2,1919.9,8.21284]
[1617249098761,9.50934959,1920.4,1919.9,8.21284]
[1617249098967,12.54395871,1920.4,1919.9,8.21284]
[1617249099365,9.50934959,1920.4,1919.9,8.21284]
[1617249101209,17.50934959,1920.4,1919.9,8.21284]
[1617249101410,15.67174959,1920.4,1919.9,8.21284]
[1617249102211,15.67174959,1920.4,1920.0,0.4]
[1617249102411,15.67174959,1920.4,1920.0,0.68]
[1617249103011,15.9434956,1920.4,1920.0,0.68]
[1617249103411,9.7810956,1920.4,1920.0,0.68]
[1617249104012,9.7810956,1920.4,1920.0,0.28]
[1617249104211,17.7810956,1920.4,1920.0,0.28]
[1617249104415,15.9080956,1920.4,1920.0,0.28]
[1617249104612,15.9080956,1920.4,1920.0,0.68]
[1617249105113,15.9080956,1920.4,1920.0,0.4]
[1617249105313,5.01,1920.2,1920.0,0.4]
[1617249105513,5.01,1920.2,1919.9,7.81284]
[1617249105727,14.7910956,1920.4,1919.9,8.09284]
[1617249105928,14.70070994,1920.4,1919.9,8.09284]
[1617249106132,14.09512601,1920.4,1919.9,8.09284]
[1617249106728,14.79122629,1920.4,1919.9,7.81284]
[1617249106930,23.33487457,1920.4,1919.9,7.81284]
[1617249107330,22.63877429,1920.4,1919.9,7.81284]
[1617249107531,20.80027429,1920.4,1919.9,7.81284]
[1617249108683,20.52852828,1920.4,1919.9,7.81284]
[1617249109485,5.01,1920.2,1919.9,7.81284]
[1617249110284,20.52852828,1920.4,1919.9,7.81284]
[1617249110484,12.48662828,1920.4,1919.9,10.63284]
[1617249110684,12.48662828,1920.4,1919.9,11.02284]
[1617249112288,8.97716,1919.9,1919.8,10.69724]
[1617249112489,8.97716,1919.9,1919.8,10.41724]
[1617249113510,7.13796,1919.9,1919.8,10.41724]
[1617249114329,7.13796,1919.9,1919.8,13.59724]
[1617249116539,5.27466,1919.9,1919.8,13.59724]
[1617249116737,5.27466,1919.9,1919.8,14.00724]
[1617249117537,5.27466,1919.9,1919.8,15.20724]
[1617249119564,3.42506,1919.9,1919.8,15.20724]
[1617249122390,3.42506,1919.9,1919.8,14.79724]
[1617249122593,1.58566,1919.9,1919.8,14.79724]
[1617249124409,1.85738303,1919.9,1919.8,11.61724]
[1617249124811,1.85738303,1919.9,1919.8,1.2]
[1617249125611,0.01868303,1919.9,1919.8,1.2]
[1617249126011,7.8147,1920.0,1919.8,1.2]
[1617249126612,25.5888381,1920.3,1919.8,1.2]
[1617249126832,3.0,1920.2,1919.9,0.385]
[1617249127032,10.81393,1920.2,1919.9,0.385]
[1617249127232,7.81393,1920.2,1919.9,0.385]
[1617249127835,3.0,1920.1,1919.9,0.385]
[1617249128432,3.07797166,1920.0,1919.6,1.2]
[1617249128635,11.20428,1920.1,1919.5,1.648]
[1617249128636,5.76527166,1920.1,1919.5,1.648]
[1617249128837,5.76527166,1920.1,1919.6,0.252]
[1617249128838,0.9067,1920.1,1919.6,0.252]
[1617249129236,8.07584332,1920.0,1919.4,0.41]
[1617249129460,7.81596,1919.8,1919.3,1.564]
[1617249129661,12.49384332,1919.7,1919.0,10.83937]
[1617249129863,12.49384332,1919.7,1918.9,0.4]
[1617249129864,5.01,1919.6,1918.9,0.4]
[1617249130060,3.06584332,1919.5,1918.8,0.476]
[1617249130260,3.45584332,1919.5,1918.8,0.476]
[1617249130462,10.32450345,1919.5,1918.8,0.476]
[1617249130863,7.81798,1919.2,1918.9,0.224]
[1617249131061,15.84188,1919.2,1918.9,0.224]
[1617249131462,5.0,1919.1,1918.9,0.224]
[1617249131663,5.2824,1919.1,1918.9,0.224]
[1617249132082,13.10108,1919.1,1918.9,0.224]
[1617249132485,9.93908,1919.1,1918.9,0.224]
[1617249132684,9.93908,1919.1,1918.7,1.2]
[1617249132889,9.93908,1919.1,1918.8,0.28]
[1617249134710,5.97963,1919.0,1918.8,0.28]
[1617249134910,5.97963,1919.0,1918.9,0.1634165]
[1617249135514,35.97963,1919.0,1918.9,0.1634165]
[1617249135717,35.97963,1919.0,1918.9,6.5e-06]
[1617249136112,36.67267613,1919.0,1918.9,6.5e-06]
[1617249136512,54.67267613,1919.0,1918.9,6.5e-06]
[1617249136711,0.81107995,1918.9,1918.6,1.0]
[1617249136913,55.37485,1918.7,1918.6,1.0]
[1617249137113,57.49705,1918.7,1918.6,1.0]
[1617249137339,65.49705,1918.7,1918.6,1.0]
[1617249137540,100.49705,1918.7,1918.6,1.0]
[1617249137741,98.65735,1918.7,1918.6,1.0]
[1617249137941,101.65735,1918.7,1918.6,1.0]
[1617249139141,71.65735,1918.7,1918.6,1.0]
[1617249139966,72.2013643,1918.7,1918.6,1.0]
[1617249140568,76.28218852,1918.7,1918.6,1.0]
[1617249140768,74.44288852,1918.7,1918.6,1.0]
[1617249141168,74.04288852,1918.7,1918.6,1.0]
[1617249141569,85.44288852,1918.7,1918.1,1.0]
[1617249141771,12.82204,1918.4,1918.1,1.0]
[1617249142987,5.0,1918.4,1918.1,1.0]
[1617249143595,5.0,1918.4,1918.1,0.95]
[1617249143790,5.01,1918.5,1918.1,0.95]
[1617249144191,5.01,1918.4,1918.1,0.95]
[1617249144388,11.0834,1918.3,1918.1,0.95]
[1617249145434,11.62741752,1918.3,1918.1,0.95]
[1617249145836,19.44977752,1918.3,1918.1,0.95]
[1617249146034,6.61741752,1918.3,1918.1,0.95]
[1617249146832,0.54401752,1918.3,1918.1,0.95]
[1617249147233,0.54401752,1918.3,1918.2,0.39]
[1617249147634,0.54401752,1918.3,1918.2,1.87]
[1617249148234,11.27174733,1918.7,1918.2,1.87]
[1617249148436,11.27174733,1918.7,1918.5,0.38]
[1617249148636,0.54394432,1918.6,1918.5,0.38]
[1617249148839,0.54394432,1918.6,1918.5,0.66]
[1617249149036,8.19394432,1918.6,1918.2,1.2]
[1617249149236,8.19394432,1918.6,1918.3,0.796]
[1617249149838,11.27174733,1918.7,1918.5,0.38]
[1617249150465,19.09178733,1918.7,1918.5,0.38]
[1617249150665,5.01,1918.6,1918.5,0.38]
[1617249150865,5.01,1918.6,1918.1,0.95]
[1617249151067,5.01,1918.5,1918.1,1.34]
[1617249152868,7.82132,1918.5,1918.3,0.4]
[1617249154294,7.82132,1918.5,1918.1,0.95]
[1617249154494,12.83132,1918.5,1918.2,0.41]
[1617249154695,7.8216,1918.3,1918.2,0.38]
[1617249154895,15.8827,1918.3,1918.2,0.38]
[1617249155096,15.8827,1918.3,1918.2,3.44935422]
[1617249155097,8.0611,1918.3,1918.2,3.44935422]
[1617249155297,0.7956,1918.4,1918.2,3.44935422]
[1617249155298,12.3586913,1918.7,1918.2,4.64935422]
[1617249155496,12.3586913,1918.7,1918.6,11.8]
[1617249155714,12.3586913,1918.7,1918.6,13.18475422]
[1617249155715,11.0,1918.7,1918.6,13.18475422]
[1617249155913,8.1886723,1918.7,1918.6,10.1154]
[1617249156313,8.1386723,1918.7,1918.6,10.1154]
[1617249156514,8.1386723,1918.7,1918.6,13.18220838]
[1617249156915,8.1386723,1918.7,1918.6,33.54929838]
[1617249157114,8.1386723,1918.7,1918.6,38.70929838]
[1617249157713,8.1386723,1918.7,1918.6,26.15929838]
[1617249158781,6.2992723,1918.7,1918.6,26.15929838]
[1617249161785,4.4593723,1918.7,1918.6,32.55929838]
[1617249163184,4.4593723,1918.7,1918.6,26.15929838]
[1617249163792,4.4593723,1918.7,1918.6,35.10929838]
[1617249163995,4.4593723,1918.7,1918.6,47.25229838]
[1617249164195,2.3e-06,1918.7,1918.6,40.54229838]
[1617249164793,20.7104623,1919.8,1918.6,40.54229838]
[1617249164995,7.81477,1920.0,1919.3,8.0779]
[1617249165194,7.81477,1920.0,1919.4,0.41]
[1617249165394,7.81477,1920.0,1919.6,0.4]
[1617249165595,0.54378316,1920.1,1919.6,0.722]
[1617249165796,0.54378316,1920.1,1919.7,0.4]
[1617249166214,0.54378316,1920.1,1919.7,9.5147]
[1617249167014,0.54378316,1920.1,1919.7,9.1147]
[1617249167615,7.81469,1920.0,1919.7,9.1147]
[1617249167816,10.98039,1920.0,1919.7,9.1147]
[1617249168016,22.08826334,1920.0,1919.7,9.1147]
[1617249168215,5.01,1919.9,1919.7,9.1147]
[1617249168617,24.30787334,1919.8,1919.7,9.1147]
[1617249168839,37.13478334,1919.8,1919.7,9.1147]
[1617249169441,12.82691,1919.8,1919.7,9.1147]
[1617249169641,7.81691,1919.8,1919.7,9.1147]
[1617249170040,0.5437767,1919.9,1919.7,9.1147]
[1617249170241,0.5437767,1919.9,1919.7,9.5047]
[1617249170840,6.6781767,1920.0,1919.7,9.5047]
[1617249171042,7.81479,1920.0,1919.7,9.5047]
[1617249171242,7.81479,1920.0,1919.8,0.378]
[1617249171665,12.6777032,1920.4,1919.9,0.322]
[1617249172469,7.81405,1920.2,1919.9,0.322]
[1617249173870,5.96985,1920.2,1919.9,0.322]
[1617249174291,5.96985,1920.2,1919.7,0.39]
[1617249174491,5.96985,1920.2,1919.7,0.712]
[1617249176095,8.88909938,1920.2,1919.7,0.712]
[1617249176299,8.88909938,1920.2,1919.7,0.322]
[1617249176494,5.96985,1920.2,1919.7,0.322]
[1617249176915,2.06925,1920.1,1919.7,0.322]
[1617249177114,2.34098517,1920.1,1919.7,0.732]
[1617249177315,2.34098517,1920.1,1919.9,0.39]
[1617249177514,2.34098517,1920.1,1919.7,0.732]
[1617249177719,6.41796721,1920.1,1919.7,0.732]
[1617249178116,7.8155,1919.9,1919.7,0.732]
[1617249178316,7.8155,1919.9,1919.7,0.322]
[1617249179543,7.8155,1919.9,1919.4,1.2]
[1617249179743,7.8155,1919.9,1919.6,0.406]
[1617249179943,7.8155,1919.9,1919.4,1.2]
[1617249179944,5.9724,1919.9,1919.4,1.2]
[1617249180144,5.9724,1919.9,1919.4,1.508]
[1617249181143,8.05676,1919.9,1919.5,0.392]
[1617249181342,5.9724,1919.9,1919.5,0.392]
[1617249181544,5.9724,1919.9,1919.7,0.4]
[1617249181743,5.9724,1919.9,1919.7,0.68]
[1617249181968,5.9724,1919.9,1919.8,1.2]
[1617249182372,4.34871721,1920.1,1919.8,1.2]
[1617249182570,4.34871721,1920.1,1919.8,1.529]
[1617249182769,4.34871721,1920.1,1919.9,3.10425286]
[1617249182973,2.50981721,1920.1,1920.0,6.59]
[1617249183171,1.08693638,1920.2,1920.0,15.6484]
[1617249183371,0.54369066,1920.3,1920.1,3.86663016]
[1617249183571,1.0,1920.4,1920.2,0.66]
[1617249183970,1.0,1920.4,1920.3,11.34163016]
[1617249184169,1.0,1920.4,1920.3,8.66]
[1617249184370,0.9,1920.4,1920.3,8.66]
[1617249184590,0.9,1920.4,1920.3,8.61]
[1617249184789,0.9,1920.4,1920.3,11.29]
[1617249184989,0.9,1920.4,1920.3,14.38163016]
[1617249185190,0.9,1920.4,1920.3,15.58163016]
[1617249185390,0.9,1920.4,1920.3,15.86163016]
[1617249185791,0.9,1920.4,1920.3,20.87163016]
[1617249185993,0.06789583,1920.9,1920.4,12.5]
[1617249186193,0.06789583,1920.9,1920.5,0.81]
[1617249186392,0.06789583,1920.9,1920.6,0.4]
[1617249186592,0.06789583,1920.9,1920.6,0.68]
[1617249186792,0.06789583,1920.9,1920.7,1.2]
[1617249187418,0.06789583,1920.9,1920.8,0.39]
[1617249187617,0.06789583,1920.9,1920.7,4.65909846]
[1617249187816,0.06789583,1920.9,1920.7,4.93909846]
[1617249188219,0.06789583,1920.9,1920.7,1.86]
[1617249189021,10.58371594,1921.4,1920.8,0.4]
[1617249189218,10.58371594,1921.4,1920.9,0.39]
[1617249189417,10.57169892,1921.4,1920.9,0.39]
[1617249189860,7.80977,1921.2,1920.9,0.39]
[1617249191463,7.80977,1921.2,1920.8,0.406]
[1617249192064,5.96897,1921.2,1920.8,0.796]
[1617249192262,5.96897,1921.2,1920.8,0.746]
[1617249192468,5.96897,1921.2,1920.8,1.946]
[1617249192668,5.96897,1921.2,1921.0,0.18779881]
[1617249192868,0.056,1921.3,1921.0,0.57779881]
[1617249193069,10.056,1921.3,1921.0,0.57779881]
[1617249193474,10.056,1921.3,1921.0,0.18779881]
[1617249194068,17.86564,1921.3,1921.0,0.18779881]
[1617249194671,8.45,1921.2,1920.8,1.59]
[1617249194870,8.45,1921.2,1920.8,1.2]
[1617249195096,6.6132,1921.2,1920.8,0.4]
[1617249195296,14.42314,1921.2,1920.8,0.4]
[1617249196101,14.42314,1921.2,1920.9,0.343]
[1617249196297,14.42341,1921.2,1920.7,1.2]
[1617249197099,14.42341,1921.2,1920.7,1.59]
[1617249197300,10.59937232,1921.3,1920.9,0.41]
[1617249197501,10.54337232,1921.3,1920.9,0.41]
[1617249197719,10.54337232,1921.3,1921.1,0.20046751]
[1617249198117,8.1631,1921.3,1921.1,0.20046751]
[1617249199118,8.1631,1921.3,1921.1,0.59046751]
[1617249200748,8.1631,1921.3,1921.1,0.20046751]
[1617249201149,6.3229,1921.3,1921.1,0.20046751]
[1617249201352,6.3229,1921.3,1921.2,0.16322087]
[1617249204001,4.4772,1921.3,1921.2,0.16322087]
[1617249204399,14.2772,1921.3,1921.2,0.16322087]
[1617249204796,14.2272,1921.3,1921.2,0.16322087]
[1617249205400,34.1272,1921.3,1921.2,0.16322087]
[1617249205612,34.67059788,1921.3,1921.2,0.16322087]
[1617249206413,35.06059788,1921.3,1921.2,0.16322087]
[1617249206617,40.06059788,1921.3,1921.2,0.16322087]
[1617249206815,40.06059788,1921.3,1920.4,0.39]
[1617249207015,5.97312,1920.8,1920.4,0.28]
[1617249207615,5.97312,1920.8,1920.5,0.38]
[1617249208220,5.97312,1920.8,1920.5,0.66]
[1617249208419,0.056,1921.0,1920.5,0.66]
[1617249209019,0.056,1921.0,1920.5,0.28]
[1617249209820,7.81069,1921.1,1920.6,0.42]
[1617249210018,28.96819788,1921.3,1920.6,0.42]
[1617249210219,12.93119788,1921.3,1920.8,0.28]
[1617249210842,0.27164773,1921.2,1920.8,0.68]
[1617249212244,0.54336909,1921.1,1920.8,0.68]
[1617249212443,0.54336909,1921.1,1920.9,0.16323786]
[1617249212644,0.54336909,1921.1,1921.0,0.17183663]
[1617249213043,11.35391682,1921.3,1921.0,0.17183663]
[1617249213245,19.16320682,1921.3,1921.0,0.17183663]
[1617249213469,9.36320682,1921.3,1921.0,0.34592227]
[1617249213869,9.36320682,1921.3,1921.0,0.17408564]
[1617249216101,7.52380682,1921.3,1921.0,0.17408564]
[1617249217900,7.52380682,1921.3,1921.1,0.16322511]
[1617249219132,6.22826065,1921.3,1921.1,0.16322511]
[1617249219533,0.39,1921.2,1921.1,0.16322511]
[1617249219742,22.8,1921.1,1921.0,0.17408564]
[1617249219932,35.81,1921.1,1921.0,0.17408564]
[1617249220532,40.81,1921.1,1921.0,0.17408564]
[1617249220734,40.81,1921.1,1920.3,0.39]
[1617249220935,40.81,1921.1,1920.3,3.87775464]
[1617249220936,7.81172,1920.7,1920.3,3.87775464]
[1617249221995,7.81172,1920.7,1920.3,5.07775464]
[1617249222193,5.96582,1920.7,1920.4,0.4]
[1617249222401,0.056,1920.9,1920.4,0.4]
[1617249222594,0.056,1920.9,1920.5,0.238]
[1617249222795,0.056,1920.9,1920.5,0.648]
[1617249222995,0.056,1921.2,1920.7,0.462]
[1617249223595,7.86575,1921.2,1920.7,0.462]
[1617249224796,0.54339471,1921.1,1920.7,0.462]
[1617249224998,8.35349471,1921.1,1920.7,0.462]
[1617249225195,6.51259471,1921.1,1920.7,0.462]
[1617249225396,6.51259471,1921.1,1920.6,0.4]
[1617249225597,6.51259471,1921.1,1920.5,0.68]
[1617249227210,6.51259471,1921.1,1920.7,0.41]
[1617249227410,11.52259471,1921.1,1920.8,0.39]
[1617249228209,9.68029471,1921.1,1920.8,0.39]
[1617249228611,9.68029471,1921.1,1920.8,0.18924634]
[1617249229010,0.27165662,1921.0,1920.8,0.18924634]
[1617249230243,8.08233662,1921.0,1920.8,0.18924634]
[1617249231239,8.62575809,1921.0,1920.8,0.18924634]
[1617249231440,6.69065809,1921.0,1920.8,0.18924634]
[1617249231639,4.55055809,1921.0,1920.8,0.18924634]
[1617249231861,4.00713662,1921.0,1920.8,0.18924634]
[1617249232062,4.00713662,1921.0,1920.8,0.59924634]
[1617249232664,5.01,1921.1,1920.8,0.59924634]
[1617249234065,12.81988,1921.1,1920.8,0.59924634]
[1617249234892,12.81128,1921.1,1920.8,0.59924634]
[1617249235687,12.81128,1921.1,1920.8,0.18924634]
[1617249236889,14.8942832,1921.1,1920.8,0.18924634]
[1617249237134,7.0844032,1921.1,1920.8,0.18924634]
[1617249238335,5.72731,1921.0,1920.8,0.18924634]
[1617249240742,5.72731,1921.0,1920.8,0.87924634]
[1617249240940,5.72731,1921.0,1920.9,0.39]
[1617249241339,3.88801,1921.0,1920.9,0.39]
[1617249241539,3.88801,1921.0,1920.8,0.18924634]
[1617249241940,13.59940898,1921.2,1920.8,0.18924634]
[1617249242569,7.80978,1921.1,1920.8,0.18924634]
[1617249243170,13.59940898,1921.2,1920.8,0.18924634]
[1617249243374,13.54340898,1921.2,1920.8,0.18924634]
[1617249243773,13.0,1921.2,1920.9,0.16323786]
[1617249243974,20.80943,1921.2,1920.9,0.83323786]
[1617249244373,11.1631,1921.2,1920.9,0.83323786]
[1617249244573,11.1631,1921.2,1921.0,0.4]
[1617249244774,11.1631,1921.2,1921.0,3.4283865]
[1617249244988,11.1631,1921.2,1921.0,0.4]
[1617249245789,11.1631,1921.2,1920.9,0.44323786]
[1617249245992,11.1631,1921.2,1920.9,3.87162436]
[1617249246390,11.1631,1921.2,1920.9,3.24225935]
[1617249246589,11.1631,1921.2,1920.8,9.47781634]
[1617249246789,11.1631,1921.2,1921.0,0.4]
[1617249246990,11.1631,1921.2,1921.1,3.01607538]
[1617249247192,0.27160922,1921.1,1921.0,0.4]
[1617249247390,9.59550922,1921.2,1921.0,0.4]
[1617249248620,9.59550922,1921.2,1920.9,1.2]
[1617249248820,9.59550922,1921.2,1920.9,1.59]
[1617249250020,9.59550922,1921.2,1921.1,0.41]
[1617249250246,7.75730922,1921.2,1921.1,0.41]
[1617249253266,5.91970922,1921.2,1921.1,0.41]
[1617249253467,5.91970922,1921.2,1920.9,9.0082]
[1617249253667,5.91970922,1921.2,1920.9,9.4082]
[1617249255271,5.91970922,1921.2,1921.1,0.38]
[1617249255696,5.91970922,1921.2,1921.0,3.01101422]
[1617249255897,5.91970922,1921.2,1920.9,1.2]
[1617249256097,5.91970922,1921.2,1920.9,9.40832]
[1617249256298,4.07840922,1921.2,1920.9,9.40832]
[1617249256500,4.07840922,1921.2,1921.0,0.39]
[1617249256896,4.07840922,1921.2,1920.9,9.00832]
[1617249257096,4.07840922,1921.2,1920.9,9.39832]
[1617249257498,4.07840922,1921.2,1921.0,0.39]
[1617249257898,4.07840922,1921.2,1921.0,3.40436376]
[1617249258725,4.07840922,1921.2,1921.0,11.21230376]
[1617249259327,2.24160922,1921.2,1921.0,11.21230376]
[1617249259527,2.24160922,1921.2,1921.1,0.39]
[1617249261146,2.24160922,1921.2,1921.1,8.19756]
[1617249261347,2.24160922,1921.2,1921.1,0.39]
[1617249262348,0.38990922,1921.2,1921.1,0.39]
[1617249263148,0.38990922,1921.2,1921.1,8.19755]
[1617249263369,0.38990922,1921.2,1921.1,0.39]
[1617249263771,0.38990922,1921.2,1921.0,4.21436376]
[1617249264172,0.38990922,1921.2,1921.0,12.02227376]